fUST/lending_fUST_20240415
["ID","MTS","AMOUNT","RATE_DAILY","PERIOD"]
[322624887,1713130242146,-551.02,0.00038356,7]
[322624888,1713130242156,-500.0,0.00038356,7]
[322624889,1713130242166,-3551.97,0.00038356,7]
[322624890,1713130242177,-500.0,0.00038356,7]
[322624891,1713130242187,-500.0,0.00038356,7]
[322624892,1713130242196,-986.26,0.00038356,7]
[322624893,1713130242204,-974.27,0.00038356,7]
[322624894,1713130242213,-1637.28,0.00038356,7]
[322624895,1713130242222,-500.0,0.00038356,7]
[322624896,1713130242231,-500.0,0.00038356,7]
[322624897,1713130242240,-151.0,0.00038356,2]
[322624898,1713130242249,-704.41,0.00038356,7]
[322624899,1713130242258,-500.0,0.00038356,7]
[322624900,1713130242267,-529.74,0.00038356,7]
[322624901,1713130242276,-1885.05,0.00038356,7]
[322624902,1713130242285,-500.0,0.00038356,7]
[322624903,1713130242295,-605.23,0.00038356,7]
[322624904,1713130242306,-500.0,0.00038356,7]
[322624905,1713130242315,-500.0,0.00038356,7]
[322624906,1713130242325,-500.0,0.00038356,7]
[322624907,1713130242335,-2822.519254,0.00038356,2]
[322624908,1713130242345,-2822.519254,0.00038356,2]
[322624909,1713130242356,-500.0,0.00038356,7]
[322624910,1713130242366,-584.74709342,0.00038356,7]
[322624911,1713130242376,-650.74,0.00038356,7]
[322624912,1713130242385,-268.23408,0.00038356,2]
[322624913,1713130242396,-500.0,0.00038356,7]
[322624914,1713130242406,-500.0,0.00038356,7]
[322624915,1713130242417,-268.23408,0.00038356,2]
[322624916,1713130242427,-500.0,0.00038356,7]
[322624917,1713130242437,-500.0,0.00038356,7]
[322624918,1713130242446,-500.0,0.00038356,7]
[322624919,1713130242456,-500.0,0.00038356,7]
[322624920,1713130242467,-500.0,0.00038356,7]
[322624921,1713130242477,-256.216173,0.00038356,2]
[322624922,1713130242490,-500.0,0.00038356,7]
[322624923,1713130242500,-494.01116644,0.00038356,7]
[322624924,1713130242509,-256.216173,0.00038356,2]
[322624925,1713130242520,-2803.11,0.00038356,7]
[322624926,1713130242530,-500.0,0.00038356,7]
[322624927,1713130242539,-595.7,0.00038356,7]
[322624928,1713130242549,-38199.21,0.00038356,7]
[322624929,1713130242558,-500.0,0.00038356,7]
[322624930,1713130242568,-558.29,0.00038356,7]
[322624931,1713130242578,-501.29234121,0.00038356,7]
[322624932,1713130242587,-500.62077655,0.00038356,2]
[322624933,1713130242597,-506.19990765,0.00038356,7]
[322624934,1713130242608,-500.0,0.00038356,7]
[322624935,1713130242618,-500.0,0.00038356,7]
[322624936,1713130242627,-8183.26,0.00038356,7]
[322624937,1713130242637,-4382.45,0.00038356,7]
[322624938,1713130242646,-1408.33,0.00038356,7]
[322624939,1713130242655,-500.0,0.00038356,7]
[322624940,1713130242664,-2482.64,0.00038356,7]
[322624941,1713130242673,-3055.55,0.00038356,7]
[322624942,1713130242682,-500.0,0.00038356,7]
[322624943,1713130242691,-522.02119539,0.00038356,7]
[322624944,1713130242700,-500.0,0.00038356,7]
[322624945,1713130242710,-10990.82,0.00038356,7]
[322624946,1713130242718,-2298.17,0.00038356,7]
[322624947,1713130242727,-500.0,0.00038356,7]
[322624948,1713130242736,-500.0,0.00038356,2]
[322624949,1713130242745,-267.97587795,0.00038356,2]
[322624950,1713130242755,-2500.0,0.0003836,18]
[322624951,1713130242764,-2500.0,0.0003837,18]
[322624952,1713130242774,-2500.0,0.0003838,18]
[322624953,1713130242783,-2500.0,0.0003839,18]
[322624954,1713130242793,-2500.0,0.000384,18]
[322624955,1713130242802,-151.0,0.000384,2]
[322624956,1713130242811,-151.0,0.000384,2]
[322624957,1713130242821,-151.0,0.000384,2]
[322624958,1713130242830,-2822.16393,0.000384,2]
[322624959,1713130242839,-2822.16393,0.000384,2]
[322624960,1713130242848,-151.0,0.000384,2]
[322624961,1713130242859,-2500.0,0.0003841,18]
[322624962,1713130242868,-256.216173,0.0003841,2]
[322624964,1713130242878,-256.216173,0.0003841,2]
[322624967,1713130242887,-2500.0,0.0003842,18]
[322624969,1713130242896,-2500.0,0.0003843,18]
[322624972,1713130242906,-2500.0,0.0003844,18]
[322624975,1713130242915,-2500.0,0.0003845,18]
[322624977,1713130242924,-2500.0,0.0003846,18]
[322624979,1713130242935,-2500.0,0.0003847,18]
[322624980,1713130242945,-2500.0,0.0003848,18]
[322624982,1713130242954,-2500.0,0.0003849,18]
[322624984,1713130242963,-160.328021,0.0003849,2]
[322624986,1713130242973,-2822.519254,0.0003849,2]
[322624988,1713130242982,-2822.519254,0.0003849,2]
[322624991,1713130242992,-268.23408,0.0003849,2]
[322624994,1713130243001,-268.23408,0.0003849,2]
[322624997,1713130243011,-500.0,0.00038499,10]
[322625000,1713130243020,-2500.0,0.000385,19]
[322625001,1713130243029,-2500.0,0.0003851,19]
[322625002,1713130243039,-1741.234394,0.0003852,2]
[322625003,1713130243049,-1741.234394,0.0003852,2]
[322625004,1713130243059,-151.0,0.0003852,2]
[322625005,1713130243068,-2500.0,0.0003852,19]
[322625006,1713130243077,-2500.0,0.0003853,19]
[322625007,1713130243087,-2500.0,0.0003854,19]
[322625008,1713130243097,-186.433405,0.0003855,2]
[322625009,1713130243107,-186.433405,0.0003855,2]
[322625010,1713130243117,-151.0,0.0003855,2]
[322625011,1713130243126,-2500.0,0.0003855,19]
[322625012,1713130243136,-2500.0,0.0003856,19]
[322625013,1713130243146,-2500.0,0.0003857,19]
[322625014,1713130243155,-2500.0,0.0003858,19]
[322625015,1713130243166,-151.0,0.0003859,2]
[322625016,1713130243175,-2500.0,0.0003859,19]
[322625017,1713130243186,-2500.0,0.000386,19]
[322625018,1713130243195,-2500.0,0.0003861,19]
[322625019,1713130243204,-2500.0,0.0003862,19]
[322625020,1713130243214,-692.886601,0.0003862,2]
[322625021,1713130243223,-692.886601,0.0003862,2]
[322625022,1713130243232,-329.86833546,0.00038629,10]
[322625023,1713130243241,-500.0,0.0003863,7]
[322625024,1713130243251,-500.0,0.0003863,7]
[322625025,1713130243261,-500.0,0.0003863,7]
[322625026,1713130243270,-500.0,0.0003863,7]
[322625027,1713130243279,-1505.33,0.0003863,7]
[322625028,1713130243289,-500.0,0.0003863,7]
[322625029,1713130243299,-500.0,0.0003863,7]
[322625030,1713130243308,-500.0,0.0003863,7]
[322625031,1713130243317,-500.0,0.0003863,7]
[322625032,1713130243326,-1000.0,0.0003863,2]
[322625033,1713130243336,-500.0,0.0003863,7]
[322625034,1713130243345,-492.91050974,0.0003863,7]
[322625035,1713130243355,-812.11,0.0003863,7]
[322625036,1713130243364,-151.0,0.0003863,2]
[322625037,1713130243374,-500.0,0.0003863,7]
[322625038,1713130243385,-615.48892633,0.0003863,7]
[322625039,1713130243395,-500.0,0.0003863,7]
[322625040,1713130243404,-500.0,0.0003863,7]
[322625041,1713130243413,-500.0,0.0003863,7]
[322625042,1713130243422,-500.0,0.0003863,7]
[322625043,1713130243431,-500.0,0.0003863,7]
[322625044,1713130243440,-500.0,0.0003863,7]
[322625045,1713130243450,-504.03,0.0003863,7]
[322625046,1713130243459,-500.0,0.0003863,7]
[322625047,1713130243469,-502.19453378,0.0003863,7]
[322625048,1713130243479,-500.0,0.0003863,7]
[322625049,1713130243490,-500.0,0.0003863,7]
[322625050,1713130243499,-500.0,0.0003863,7]
[322625051,1713130243508,-509.46,0.0003863,7]
[322625052,1713130243517,-1731.24,0.0003863,7]
[322625053,1713130243527,-151.0,0.0003863,2]
[322625054,1713130243536,-151.0,0.0003863,2]
[322625055,1713130243545,-151.0,0.0003863,2]
[322625056,1713130243554,-342.388765,0.0003863,2]
[322625057,1713130243565,-342.388765,0.0003863,2]
[322625058,1713130243575,-342.388765,0.0003863,2]
[322625059,1713130243584,-500.0,0.0003863,7]
[322625060,1713130243593,-500.0,0.0003863,7]
[322625061,1713130243604,-342.388765,0.0003863,2]
[322625062,1713130243614,-342.388765,0.0003863,2]
[322625063,1713130243623,-342.388765,0.0003863,2]
[322625064,1713130243633,-186.433405,0.0003863,2]
[322625065,1713130243642,-186.433405,0.0003863,2]
[322625066,1713130243652,-500.0,0.0003863,7]
[322625067,1713130243661,-186.433405,0.0003863,2]
[322625068,1713130243671,-186.433405,0.0003863,2]
[322625069,1713130243680,-186.433405,0.0003863,2]
[322625070,1713130243690,-186.433405,0.0003863,2]
[322625071,1713130243699,-500.0,0.0003863,7]
[322625072,1713130243708,-500.0,0.0003863,7]
[322625073,1713130243718,-531.60733744,0.0003863,7]
[322625074,1713130243727,-151.0,0.0003863,2]
[322625075,1713130243736,-151.0,0.0003863,2]
[322625076,1713130243745,-151.0,0.0003863,2]
[322625077,1713130243754,-500.0,0.0003863,7]
[322625078,1713130243763,-500.0,0.0003863,7]
[322625079,1713130243773,-500.0,0.0003863,7]
[322625080,1713130243782,-339.27618828,0.0003863,7]
[322625081,1713130243791,-1741.234394,0.0003863,2]
[322625082,1713130243800,-1741.234394,0.0003863,2]
[322625083,1713130243810,-500.0,0.0003863,7]
[322625084,1713130243819,-1741.234394,0.0003863,2]
[322625085,1713130243828,-1741.234394,0.0003863,2]
[322625086,1713130243837,-151.0,0.0003863,2]
[322625087,1713130243847,-243.79794,0.0003863,2]
[322625088,1713130243858,-509.38530171,0.0003863,7]
[322625089,1713130243868,-500.0,0.0003863,7]
[322625091,1713130243877,-500.0,0.0003863,7]
[322625093,1713130243886,-500.0,0.0003863,7]
[322625095,1713130243896,-500.0,0.0003863,7]
[322625096,1713130243905,-500.0,0.0003863,7]
[322625097,1713130243914,-500.0,0.0003863,7]
[322625098,1713130243923,-500.0,0.0003863,7]
[322625099,1713130243932,-2500.0,0.0003863,19]
[322625100,1713130243941,-500.0,0.0003863,7]
[322625101,1713130243950,-500.0,0.0003863,7]
[322625102,1713130243958,-500.0,0.0003863,7]
[322625103,1713130243968,-500.0,0.0003863,7]
[322625104,1713130243976,-500.0,0.0003863,7]
[322625105,1713130243986,-504.16661416,0.0003863,7]
[322625106,1713130243995,-500.0,0.0003863,7]
[322625107,1713130244004,-500.0,0.0003863,7]
[322625108,1713130244014,-500.0,0.0003863,7]
[322625109,1713130244023,-4569.16,0.0003863,7]
[322625110,1713130244032,-1737.14,0.0003863,7]
[322625111,1713130244042,-500.0,0.0003863,7]
[322625112,1713130244051,-514.41580354,0.0003863,7]
[322625113,1713130244060,-500.0,0.0003863,7]
[322625114,1713130244069,-500.0,0.0003863,7]
[322625115,1713130244078,-492.77112123,0.0003863,7]
[322625116,1713130244087,-500.0,0.0003863,7]
[322625117,1713130244097,-733.48,0.0003863,7]
[322625118,1713130244107,-500.0,0.0003863,7]
[322625119,1713130244117,-510.31776424,0.0003863,7]
[322625120,1713130244126,-500.0,0.0003863,7]
[322625121,1713130244135,-500.0,0.0003863,7]
[322625122,1713130244144,-151.0,0.0003863,2]
[322625123,1713130244153,-151.0,0.0003863,2]
[322625124,1713130244163,-151.0,0.0003863,2]
[322625125,1713130244172,-500.0,0.0003863,7]
[322625126,1713130244182,-621.48,0.0003863,7]
[322625127,1713130244191,-151.0,0.0003863,2]
[322625128,1713130244200,-151.0,0.0003863,2]
[322625129,1713130244209,-151.0,0.0003863,2]
[322625130,1713130244218,-151.0,0.0003863,2]
[322625131,1713130244227,-151.0,0.0003863,2]
[322625132,1713130244236,-1018.9,0.0003863,7]
[322625133,1713130244245,-151.0,0.0003863,2]
[322625134,1713130244254,-500.0,0.0003863,7]
[322625135,1713130244263,-500.0,0.0003863,7]
[322625136,1713130244272,-379.73453618,0.0003863,7]
[322625137,1713130244281,-500.0,0.0003863,7]
[322625138,1713130244290,-546.05,0.0003863,7]
[322625139,1713130244299,-500.0,0.0003863,7]
[322625140,1713130244308,-563.87,0.0003863,7]
[322625141,1713130244317,-2822.16393,0.0003863,2]
[322625142,1713130244327,-2822.16393,0.0003863,2]
[322625143,1713130244337,-2822.16393,0.0003863,2]
[322625144,1713130244346,-500.0,0.0003863,7]
[322625145,1713130244356,-2822.16393,0.0003863,2]
[322625146,1713130244365,-2822.16393,0.0003863,2]
[322625147,1713130244374,-2822.16393,0.0003863,2]
[322625148,1713130244383,-500.0,0.0003863,7]
[322625149,1713130244393,-500.0,0.0003863,7]
[322625150,1713130244402,-500.0,0.0003863,7]
[322625151,1713130244411,-511.17,0.0003863,7]
[322625152,1713130244419,-4250.06,0.0003863,7]
[322625153,1713130244429,-500.0,0.0003863,7]
[322625154,1713130244438,-500.0,0.0003863,7]
[322625155,1713130244447,-500.0,0.0003863,7]
[322625156,1713130244456,-500.0,0.0003863,7]
[322625157,1713130244465,-2317.21,0.0003863,7]
[322625158,1713130244475,-857.73,0.0003863,7]
[322625159,1713130244487,-500.0,0.0003863,7]
[322625160,1713130244496,-692.886601,0.0003863,2]
[322625161,1713130244506,-692.886601,0.0003863,2]
[322625162,1713130244619,-21459.6,0.0003863,7]
[322625163,1713130244629,-850.61,0.0003863,7]
[322625164,1713130244638,-692.886601,0.0003863,2]
[322625165,1713130244648,-692.886601,0.0003863,2]
[322625166,1713130244657,-515.04,0.0003863,7]
[322625167,1713130244666,-500.0,0.0003863,7]
[322625168,1713130244675,-6486.81,0.0003863,7]
[322625169,1713130244684,-1509.79,0.0003863,7]
[322625170,1713130244693,-16035.46,0.0003863,7]
[322625171,1713130244702,-500.0,0.0003863,7]
[322625172,1713130244712,-500.0,0.0003863,7]
[322625173,1713130244721,-2397.22,0.0003863,7]
[322625174,1713130244729,-500.0,0.0003863,7]
[322625175,1713130244738,-2099.85,0.0003863,7]
[322625176,1713130244748,-500.0,0.0003863,7]
[322625177,1713130244757,-500.0,0.0003863,7]
[322625178,1713130244766,-500.0,0.0003863,7]
[322625179,1713130244775,-500.0,0.0003863,7]
[322625180,1713130244784,-500.0,0.0003863,7]
[322625181,1713130244793,-1939.48,0.0003863,7]
[322625182,1713130244803,-500.0,0.0003863,7]
[322625183,1713130244811,-500.0,0.0003863,7]
[322625184,1713130244822,-853.51,0.0003863,7]
[322625185,1713130244831,-2596.81,0.0003863,7]
[322625186,1713130244840,-563.21,0.0003863,7]
[322625187,1713130244849,-151.0,0.0003863,2]
[322625188,1713130244861,-500.0,0.0003863,7]
[322625189,1713130244870,-151.0,0.0003863,2]
[322625190,1713130244880,-151.0,0.0003863,2]
[322625191,1713130244890,-500.0,0.0003863,7]
[322625192,1713130244899,-607.74,0.0003863,7]
[322625193,1713130244908,-989.7,0.0003863,7]
[322625194,1713130244918,-500.0,0.0003863,7]
[322625195,1713130244927,-803.44,0.0003863,7]
[322625196,1713130244936,-633.89,0.0003863,7]
[322625197,1713130244945,-721.15,0.0003863,7]
[322625198,1713130244954,-1527.74,0.0003863,7]
[322625199,1713130244963,-500.0,0.0003863,7]
[322625200,1713130244974,-500.0,0.0003863,7]
[322625201,1713130244983,-551.02,0.0003863,7]
[322625202,1713130244992,-500.0,0.0003863,7]
[322625203,1713130245002,-3551.97,0.0003863,7]
[322625204,1713130245011,-500.0,0.0003863,7]
[322625205,1713130245020,-500.0,0.0003863,7]
[322625206,1713130245036,-986.26,0.0003863,7]
[322625207,1713130245050,-974.27,0.0003863,7]
[322625208,1713130245060,-1637.28,0.0003863,7]
[322625209,1713130245070,-500.0,0.0003863,7]
[322625210,1713130245080,-500.0,0.0003863,7]
[322625211,1713130245090,-704.41,0.0003863,7]
[322625212,1713130245099,-500.0,0.0003863,7]
[322625213,1713130245111,-529.74,0.0003863,7]
[322625214,1713130245121,-1885.05,0.0003863,7]
[322625215,1713130245130,-500.0,0.0003863,7]
[322625216,1713130245139,-605.23,0.0003863,7]
[322625217,1713130245149,-452.15799492,0.0003863,7]
[322625218,1713130245159,-500.0,0.0003863,7]
[322625219,1713130245169,-500.0,0.0003863,7]
[322625220,1713130245178,-2822.519254,0.0003863,2]
[322625221,1713130245189,-2822.519254,0.0003863,2]
[322625222,1713130245198,-2822.519254,0.0003863,2]
[322625223,1713130245208,-2822.519254,0.0003863,2]
[322625224,1713130245217,-2822.519254,0.0003863,2]
[322625225,1713130245226,-2822.519254,0.0003863,2]
[322625226,1713130245236,-500.0,0.0003863,7]
[322625227,1713130245245,-650.74,0.0003863,7]
[322625228,1713130245254,-268.23408,0.0003863,2]
[322625229,1713130245264,-268.23408,0.0003863,2]
[322625230,1713130245273,-500.0,0.0003863,7]
[322625231,1713130245283,-268.23408,0.0003863,2]
[322625232,1713130245293,-500.0,0.0003863,7]
[322625233,1713130245303,-268.23408,0.0003863,2]
[322625234,1713130245312,-268.23408,0.0003863,2]
[322625235,1713130245321,-268.23408,0.0003863,2]
[322625236,1713130245330,-500.0,0.0003863,7]
[322625237,1713130245340,-500.0,0.0003863,7]
[322625238,1713130245349,-256.216173,0.0003863,2]
[322625239,1713130245359,-256.216173,0.0003863,2]
[322625240,1713130245368,-256.216173,0.0003863,2]
[322625241,1713130245378,-500.0,0.0003863,7]
[322625242,1713130245387,-256.216173,0.0003863,2]
[322625243,1713130245396,-256.216173,0.0003863,2]
[322625244,1713130245405,-256.216173,0.0003863,2]
[322625245,1713130245414,-2803.11,0.0003863,7]
[322625246,1713130245423,-236.94,0.0003863,7]
[322625247,1713130245432,-38199.21,0.0003863,7]
[322625248,1713130245442,-500.0,0.0003863,7]
[322625249,1713130245451,-500.0,0.0003863,7]
[322625250,1713130245461,-500.0,0.0003863,7]
[322625251,1713130245470,-2594.66205409,0.0003863,7]
[322625258,1713130246253,-0.00118312,0.0003863,7]
[322625259,1713130246699,-1787.78676279,0.0003863,7]
[322625260,1713130246710,-8183.26,0.0003863,7]
[322625261,1713130246719,-1408.33,0.0003863,7]
[322625262,1713130246728,-500.0,0.0003863,7]
[322625263,1713130246738,-2482.64,0.0003863,7]
[322625264,1713130246748,-3055.55,0.0003863,7]
[322625265,1713130246757,-500.0,0.0003863,7]
[322625266,1713130246766,-460.43323684,0.0003863,7]
[322625267,1713130265123,2617.86637694,0.00021935,2]
[322625268,1713130286681,156.87945876,0.00029177,2]
[322625269,1713131233151,-518.9022578,0.00027261,2]
[322625270,1713131233171,-695.95836764,0.00027261,2]
[322625271,1713131251089,-622.54237814,0.0002726,2]
[322625272,1713131251109,-154.84515485,0.0002726,2]
[322625273,1713131251128,-1035.72974328,0.00027261,2]
[322625274,1713131354105,-725.45317527,0.0002682,2]
[322625275,1713131360194,-5064.70597452,0.0002682,2]
[322625276,1713131360353,-2123.81601787,0.0002682,2]
[322625277,1713131360374,-887.82162217,0.00026821,2]
[322625278,1713131360395,-154.84515485,0.00026822,2]
[322625279,1713131360415,-540.45532517,0.00026822,2]
[322625280,1713131360434,-154.84515485,0.00026823,2]
[322625281,1713131360457,-203.76593,0.00026824,2]
[322625282,1713131360478,-300.0,0.00027255,2]
[322625283,1713131360498,-300.0,0.00027255,2]
[322625284,1713131360518,-2606.23067944,0.00027263,2]
[322625285,1713131360539,-3201.62146043,0.00027264,2]
[322625286,1713131360558,-305.17544274,0.00027277,2]
[322625287,1713131360581,-168.875577,0.00027397,2]
[322625288,1713131360601,-166.666666,0.00027853,2]
[322625289,1713131360623,-728.0689562,0.00028062,2]
[322625290,1713131360644,-166.666666,0.00028613,2]
[322625291,1713131360667,-20433.6786384,0.00028731,2]
[322625292,1713131360689,-2329.90982892,0.00029077,2]
[322625293,1713131360708,-309.65937778,0.00029177,2]
[322625294,1713131360730,-166.666666,0.00029372,2]
[322625295,1713131360752,-420.0,0.00029458,2]
[322625296,1713131360774,-420.0,0.00029981,2]
[322625297,1713131360795,-404.0,0.0003,2]
[322625298,1713131360817,-166.666666,0.00030132,2]
[322625299,1713131360841,-161.9419862,0.00030369,2]
[322625300,1713131360863,-166.666666,0.00030891,2]
[322625301,1713131360886,-250.0,0.00030941,2]
[322625302,1713131360907,-166.666666,0.0003165,2]
[322625303,1713131360931,-587.0,0.00031839,2]
[322625304,1713131360953,-587.0,0.00032979,2]
[322625305,1713131360974,-465.26500893,0.00034,4]
[322625306,1713131360995,-293.0,0.00034413,2]
[322625307,1713131361016,-796.70794336,0.00034898,4]
[322625308,1713131361037,-368.07521709,0.000349,2]
[322625309,1713131361060,-754.55579857,0.00035,4]
[322625310,1713131361081,-10230.57706,0.00035,4]
[322625311,1713131363491,459.09284524,0.00028977,4]
[322625312,1713131368379,459.09284524,0.00030877,5]
[322625313,1713131380074,459.09284524,0.00032778,6]
[322625314,1713131383395,459.09284524,0.00034678,7]
[322625315,1713131395336,160.676168,0.00027397,2]
[322625316,1713131412797,120.09122514,0.00028766,2]
[322625317,1713131412817,36.78823362,0.00028766,2]
[322625318,1713131413974,154.86062544,0.00030683,4]
[322625327,1713131432507,-354.345042,0.00035616,120]
[322625328,1713131432516,-33.81554944,0.0003653,2]
[322625345,1713131438540,-146.24216233,0.0003653,2]
[322625346,1713131438549,-459.09284524,0.00036579,8]
[322625347,1713131438558,-185.409869,0.00036723,2]
[322625348,1713131438567,-925.5318754,0.00036957,4]
[322625349,1713131438576,-620.53947905,0.00037173,2]
[322625350,1713131438585,-153.0,0.00037671,2]
[322625351,1713131438594,-400.0,0.00037938,2]
[322625352,1713131438603,-9394.81948009,0.00037939,7]
[322625353,1713131438612,-4000.0,0.00038,2]
[322625354,1713131438621,-188.43765363,0.00038255,2]
[322625355,1713131438630,-2000.0,0.00038256,2]
[322625356,1713131438639,-6200.79663236,0.0003835,4]
[322625357,1713131438648,-583.10117081,0.0003835,4]
[322625358,1713131438657,-265.97430503,0.00038354,4]
[322625359,1713131438666,-155.09280806,0.00038354,4]
[322625360,1713131438675,-10551.54318809,0.00038354,2]
[322625361,1713131438684,-229.82440646,0.00038354,4]
[322625362,1713131438693,-269.3326566,0.00038354,4]
[322625363,1713131438702,-2091.4124449,0.00038354,4]
[322625364,1713131438711,-155.03089473,0.00038354,4]
[322625365,1713131438721,-156.70553996,0.00038354,2]
[322625366,1713131438730,-2852.39014681,0.00038354,4]
[322625367,1713131438739,-1192.40754028,0.00038354,4]
[322625368,1713131438748,-7779.48446229,0.00038354,4]
[322625369,1713131438757,-465.26500893,0.00038354,4]
[322625370,1713131438766,-2617.86637794,0.00038354,4]
[322625371,1713131438775,-500.0,0.00038355,15]
[322625372,1713131438784,-500.0,0.00038355,15]
[322625373,1713131438794,-624.69889322,0.00038355,15]
[322625374,1713131438803,-367.05781419,0.00038355,15]
[322625375,1713131438812,-380.19072349,0.00038355,15]
[322625376,1713131438821,-500.0,0.00038355,15]
[322625377,1713131438830,-500.0,0.00038355,15]
[322625378,1713131438839,-500.0,0.00038355,15]
[322625379,1713131438853,-587.77889305,0.00038355,15]
[322625380,1713131438862,-481.55350437,0.00038355,15]
[322625381,1713131438871,-500.0,0.00038355,15]
[322625382,1713131438880,-500.0,0.00038355,15]
[322625383,1713131438891,-500.0,0.00038355,15]
[322625384,1713131438900,-500.0,0.00038355,15]
[322625385,1713131438909,-500.0,0.00038355,15]
[322625386,1713131438918,-500.0,0.00038355,15]
[322625387,1713131438929,-500.0,0.00038355,15]
[322625388,1713131438938,-506.06399911,0.00038355,15]
[322625389,1713131438947,-9209.38051289,0.00038356,5]
[322625390,1713131438956,-192.29038729,0.00038356,7]
[322625391,1713131438965,-164.72271127,0.00038356,7]
[322625392,1713131438974,-500.0,0.00038356,7]
[322625393,1713131438983,-500.0,0.00038356,7]
[322625394,1713131438992,-500.0,0.00038356,7]
[322625395,1713131439001,-610.44808482,0.00038356,7]
[322625396,1713131439010,-1442.61,0.00038356,7]
[322625397,1713131439020,-500.0,0.00038356,7]
[322625398,1713131439029,-500.0,0.00038356,7]
[322625399,1713131439038,-500.0,0.00038356,7]
[322625400,1713131439047,-500.0,0.00038356,7]
[322625401,1713131439056,-500.0,0.00038356,7]
[322625402,1713131439065,-500.0,0.00038356,7]
[322625403,1713131439074,-500.0,0.00038356,7]
[322625404,1713131439083,-500.0,0.00038356,7]
[322625405,1713131439093,-500.0,0.00038356,7]
[322625406,1713131439102,-500.0,0.00038356,7]
[322625407,1713131439111,-500.0,0.00038356,7]
[322625408,1713131439120,-500.0,0.00038356,7]
[322625409,1713131439128,-500.0,0.00038356,7]
[322625410,1713131439137,-532.34576544,0.00038356,7]
[322625411,1713131439146,-500.0,0.00038356,7]
[322625412,1713131439155,-500.0,0.00038356,7]
[322625413,1713131439165,-1659.11,0.00038356,7]
[322625414,1713131439174,-500.0,0.00038356,7]
[322625415,1713131439184,-180.12298975,0.00038356,7]
[322625416,1713131439194,-500.0,0.00038356,7]
[322625417,1713131439204,-500.0,0.00038356,7]
[322625418,1713131439214,-497.48,0.00038356,7]
[322625419,1713131439225,-500.0,0.00038356,7]
[322625420,1713131439234,-380.5566609,0.00038356,7]
[322625421,1713131439244,-500.0,0.00038356,7]
[322625422,1713131439255,-500.0,0.00038356,7]
[322625423,1713131439265,-500.0,0.00038356,7]
[322625424,1713131439276,-580.11419855,0.00038356,7]
[322625425,1713131439288,-500.0,0.00038356,7]
[322625426,1713131439297,-500.0,0.00038356,7]
[322625427,1713131439309,-500.0,0.00038356,7]
[322625428,1713131439320,-500.0,0.00038356,7]
[322625429,1713131439329,-246.51846652,0.00038356,7]
[322625430,1713131439339,-181.97753445,0.00038356,7]
[322625431,1713131439349,-500.0,0.00038356,7]
[322625432,1713131439359,-500.0,0.00038356,7]
[322625433,1713131439369,-500.0,0.00038356,7]
[322625434,1713131439378,-500.0,0.00038356,7]
[322625435,1713131439387,-347.42659579,0.00038356,7]
[322625436,1713131439397,-500.0,0.00038356,7]
[322625437,1713131439406,-500.0,0.00038356,7]
[322625438,1713131439416,-623.91599245,0.00038356,7]
[322625439,1713131439425,-500.0,0.00038356,7]
[322625440,1713131439436,-500.0,0.00038356,7]
[322625441,1713131439446,-500.0,0.00038356,7]